Cogmind - Beta 10.2 @@@ ROGUE MODE // 2020.12.23 @ 23:40:46 Player: Wyvric Result: Destroyed by D-53 Grenadier with Mini Grenade Launcher Performance ------------- Evolutions (0) 0 Regions Visited (2) 400 Robots Destroyed (12) 60 Value Destroyed (375) 375 Prototype IDs (0) 0 Alien Tech Used (0) 0 Bonus (25) 25 TOTAL SCORE: 860 Bonus ------- Follower Combat Kills 25 Cogmind --------- Core Integrity 0/250 Matter 129/300 Energy 50/100 System Corruption 0% Temperature Cool (0) Movement Core (650) Ox12 Location -10/Mines Parts ------- > --- POWER (1) -------- (None) > --- PROPULSION (2) --- (None) > --- UTILITY (2) ------ Large Storage Unit Large Storage Unit > --- WEAPON (2) ------- Heavy Assault Rifle Grenade Launcher > --- INVENTORY (16) --- Aluminum Leg Disposable Heat Sink Medium Storage Unit Medium Storage Unit Experimental Sensor Array Heavy Assault Rifle Heavy Assault Rifle Heavy Assault Rifle EMP Blaster EMP Blaster EMP Blaster EMP Blaster Grenade Launcher Grenade Launcher Grenade Launcher Grenade Launcher Peak State ------------ > --- POWER ------------ Light Ion Engine > --- PROPULSION ------- Aluminum Leg Aluminum Leg > --- UTILITY ---------- Large Storage Unit Large Storage Unit > --- WEAPON ----------- Heavy Assault Rifle Heavy Assault Rifle > --- INVENTORY -------- Aluminum Leg Heat Sink Disposable Heat Sink Disposable Heat Sink Medium Storage Unit Medium Storage Unit Small Matter Pod Terrain Scanner Light Cannon EMP Blaster EMP Blaster Grenade Launcher Grenade Launcher Grenade Launcher Grenade Launcher Grenade Launcher [Rating: 11] Favorites ----------- Power Light Ion Engine Engine Light Ion Engine Propulsion Light Treads Treads Light Treads Leg Aluminum Leg Utility Large Storage Unit Device Terrain Scanner Storage Large Storage Unit Weapon Assault Rifle Energy Gun Medium Laser Ballistic Gun Assault Rifle Launcher EMP Blaster Build | -11 -10 -10 ------- Run | Scr Mat Min Slots Evolved . | . . . Power . | . . . Propulsion . | . . . Utility . | . . . Weapon . | . . . Parts Attached 25 | 5 13 7 Power 2 | 1 1 . Engine 2 | 1 1 . Core . | . . . Reactor . | . . . Propulsion 6 | 2 4 . Treads 2 | . 2 . Leg 4 | 2 2 . Wheel . | . . . Hover . | . . . Flight . | . . . Utility 4 | 1 3 . Device 1 | . 1 . Storage 3 | 1 2 . Processor . | . . . Hackware . | . . . Protection . | . . . Artifact . | . . . Weapon 13 | 1 5 7 Energy Gun 2 | . 2 . Energy Cannon . | . . . Ballistic Gun 6 | 1 3 2 Ballistic Cannon . | . . . Launcher 5 | . . 5 Special Weapon . | . . . Impact Weapon . | . . . Slashing Weapon . | . . . Piercing Weapon . | . . . Special Melee Weapon . | . . . Unidentified Prototypes . | . . . Parts Lost 3 | . . 3 Power 1 | . . 1 Propulsion 2 | . . 2 Utility . | . . . Weapon . | . . . Highest Loss Streak 2 | . . 2 Average Slot Usage (%) 95 | . 94 98 Engine 13 | . 14 12 Treads 14 | . 23 . Leg 13 | . 4 28 Storage 24 | . 23 28 Energy Gun 4 | . 7 . Ballistic Gun 12 | . 19 1 Launcher 9 | . . 26 Naked Turns . | . . . Heaviest Build 43 | 9 41 43 Greatest Support 40 | 20 40 20 Greatest Overweight (x) 2 | . 2 2 Average Overweight (x) . | . . 1 Largest Inventory Capacity 16 | 6 16 16 Average Capacity 13 | 4 12 16 Most Carried 16 | 5 16 16 Average Carried 12 | 3 11 15 Final Capacity 16 | 6 16 16 Final Carried 16 | 5 16 16 Class Distribution -------------------- 100% | Mutant Dominant Class ---------------- Mutant | -10/Materials Mutant | -10/Mines Resources | -11 -10 -10 ----------- Run | Scr Mat Min Matter Collected 591 | 250 260 81 Remotely . | . . . Salvage Created 452 | . 266 186 Parts 19 | . 14 5 Haulers Intercepted . | . . . Recyclers Shooed . | . . . Parts Field Recycled . | . . . Retrieved Matter . | . . . Parts Self-Destructed . | . . . Prevented . | . . . Kills | -11 -10 -10 ------- Run | Scr Mat Min Combat Hostiles Destroyed 21 | . 9 12 Guns 9 | . 9 . AOE 12 | . . 12 Classes Destroyed 3 | . 2 1 Swarmer 3 | . 3 . Grunt 9 | . 6 3 Assembled 9 | . . 9 Best Kill Streak 9 | . 2 9 Combat Bots Only 9 | . 2 9 Max Kills in Single Turn 3 | . 2 3 Gunslinging 1 | . 1 . Exploded 3 | . . 3 Melee . | . . . Uniques/NPCs Destroyed . | . . . Combat | -11 -10 -10 -------- Run | Scr Mat Min Damage Taken 1064 | . 367 697 Core 251 | . 61 190 Absorbed by Shields . | . . . Core Remaining (%) 100 | 100 . . Volleys Fired 44 | . 28 16 Largest 2 | . 2 2 Hottest 70 | . 70 66 Shots Fired 84 | . 56 28 Gun 62 | . 56 6 Cannon . | . . . Launcher 22 | . . 22 Special . | . . . Kinetic 44 | . 38 6 Thermal 18 | . 18 . Explosive 13 | . . 13 Electromagnetic 9 | . . 9 Robot Hit Streak 33 | . 33 10 Robot Miss Streak 4 | . 4 1 Penetration Max . | . . . Secondary Targets 1 | . 1 . Max Gunslinging Chain 1 | . 1 . Shots Hit Robots 50 | . 43 7 Core Hits 52 | . 14 38 Critical Hits 1 | . 1 . Critical Kills 1 | . 1 . Critical Parts Destroyed . | . . . Melee Attacks . | . . . Impact . | . . . Slashing . | . . . Piercing . | . . . Sneak Attacks . | . . . Combat Hostiles . | . . . Follow-up Attacks . | . . . Damage Inflicted 1725 | . 574 1151 Guns 645 | . 561 84 Cannons . | . . . Explosions 1067 | . . 1067 Melee . | . . . Ramming 13 | . 13 . Kinetic 513 | . 429 84 Thermal 156 | . 132 24 Explosive 713 | . . 713 Electromagnetic 330 | . . 330 Impact . | . . . Slashing . | . . . Piercing . | . . . Highest Corruption . | . . . Average Corruption . | . . . Corruption Purged . | . . . Overload Shots . | . . . Overflow Damage 21 | . . 21 Projectiles . | . . . Explosions 21 | . . 21 Melee . | . . . Knockbacks . | . . . Impact . | . . . Kinetic . | . . . Secondary . | . . . Self-Inflicted Damage . | . . . Shots . | . . . Rammed 1 | . 1 . Targets Rammed 1 | . 1 . Kicked . | . . . Crushed . | . . . Highest Temperature 63 | . 63 15 Average Temperature 17 | . 20 6 Received Heat Transfer 156 | . 138 18 Siege Activations . | . . . Robots Corrupted . | . . . Combat Hostiles . | . . . Parts Fried . | . . . Impact Corruptions . | . . . Robots Melted . | . . . Combat Hostiles . | . . . Parts Melted 1 | . 1 . Heat Transferred 471 | . 371 100 Parts Sabotaged . | . . . Parts Stolen . | . . . Parts Stripped . | . . . Power Chain Reactions 1 | . . 1 Missiles Intercepted . | . . . Alert | -11 -10 -10 ------- Run | Scr Mat Min Peak Influence 252 | . 252 122 Initial 39 | . . 39 Average 109 | . 136 78 Maximum Alert Level 1 | . 1 . Low Security (%) 81 | 100 69 100 Level 1 18 | . 30 . Level 2 . | . . . Level 3 . | . . . Level 4 . | . . . Level 5 . | . . . High Security . | . . . Max Security . | . . . Squads Dispatched 3 | . 3 . Investigation 1 | . 1 . Extermination . | . . . Reinforcement 2 | . 2 . Assault . | . . . Garrison . | . . . Intercept . | . . . Construction Impeded . | . . . Haulers Reinforced . | . . . Stealth | -11 -10 -10 --------- Run | Scr Mat Min Distress Signals 4 | . 4 . Communications Jammed . | . . . Distress Signals . | . . . Times Spotted 40 | . 17 23 Peak Tracking Total 11 | . 4 11 Tactical Retreats 1 | . . 1 Traps | -11 -10 -10 ------- Run | Scr Mat Min Traps Triggered 1 | . 1 . Indirectly . | . . . Trap Hack Attempts . | . . . Triggered . | . . . Disarmed . | . . . Reprogrammed . | . . . Reused . | . . . Traps Extracted . | . . . Installed . | . . . Triggered . | . . . Machines | -11 -10 -10 ---------- Run | Scr Mat Min Machines Disabled . | . . . Max in Single Turn . | . . . Machines Sabotaged . | . . . Garrisons Compromised . | . . . Overloaded Fab Kills . | . . . Fab Network Shutdowns . | . . . Hacking | -11 -10 -10 --------- Run | Scr Mat Min Machines Accessed 4 | . 4 . Terminals 4 | . 4 . Fabricators . | . . . Repair Stations . | . . . Recycling Units . | . . . Scanalyzers . | . . . Garrison Access . | . . . Total Hacks 13 | . 13 . Successful 6 | . 6 . Failed 7 | . 7 . Catastrophic . | . . . Database Lockouts . | . . . Manual 14 | . 14 . Terminals 13 | . 13 . Fabricators . | . . . Repair Stations . | . . . Recycling Units . | . . . Scanalyzers . | . . . Garrison Access . | . . . Terminal Hacks 2 | . 2 . Branch Access Points 1 | . 1 . Terminal Index 1 | . 1 . Fabricator Hacks . | . . . Repair Station Hacks . | . . . Recycling Unit Hacks . | . . . Scanalyzer . | . . . Garrison Access Hacks . | . . . Unauthorized Hacks 4 | . 4 . Terminals 4 | . 4 . Assimilate 1 | . 1 . Botnet 3 | . 3 . Fabricators . | . . . Repair Stations . | . . . Recycling Units . | . . . Scanalyzers . | . . . Garrison Access . | . . . Data Cores Recovered . | . . . Used . | . . . Hacking Detections 4 | . 4 . Full Trace Events . | . . . Feedback Events . | . . . Feedback Blocked . | . . . Robot Schematics Acquired . | . . . Robots Built . | . . . Matter . | . . . Time . | . . . Total Robot Build Rating . | . . . Part Schematics Acquired . | . . . Parts Built . | . . . Matter . | . . . Time . | . . . Total Part Build Rating . | . . . Parts Repaired . | . . . Time . | . . . Parts Recycled . | . . . Recycled Matter . | . . . Retrieved Matter . | . . . Retrieved Components . | . . . Parts Scanalyzed . | . . . Part Schematics Acquired . | . . . Parts Damaged . | . . . Bothacking | -11 -10 -10 ------------ Run | Scr Mat Min Used RIF Installer . | . . . Robots Hacked . | . . . Non-combat . | . . . Combat . | . . . Robot Hacks Applied . | . . . Relay Couplers Released . | . . . Robots Rewired . | . . . Allies Hacked . | . . . Hacks Repelled . | . . . Allies | -11 -10 -10 -------- Run | Scr Mat Min Total Allies 1 | . . 1 Largest Group 1 | . . 1 Highest-Rated Group 31 | . . 31 Highest-Rated Ally 31 | . . 31 Total Orders . | . . . Ally Attacks 7 | . . 7 Total Damage 127 | . . 127 Kills 1 | . . 1 Allies Corrupted . | . . . Allies Melted . | . . . Intel | -11 -10 -10 ------- Run | Scr Mat Min Robot Analysis Total . | . . . Derelict Logs Recovered . | . . . Drone Launches . | . . . Drone Recoveries . | . . . Exploration | -11 -10 -10 ------------- Run | Scr Mat Min Turns Passed 954 | 58 578 318 Spaces Moved 421 | 48 233 140 Core 16 | 16 . . Treads 184 | . 184 . Legs 221 | 32 49 140 Wheels . | . . . Hover . | . . . Flight . | . . . Fastest Speed 50 | 50 120 150 Average Speed 158 | 96 158 178 Slowest Speed 180 | 120 180 180 Overloaded Moves . | . . . Propulsion Burnouts . | . . . Robots Hopped . | . . . Cave-ins Triggered . | . . . Exploration Rate (%) 30 | 3 44 44 Regions Visited 2 Branch Regions 1 Pre-discovered Areas . | . . . Known Exits Taken 1 | . 1 . Unknown Exits Taken 1 | 1 . . Scrap Searched 1 | . . 1 Spaces Dug . | . . . Terrain Destroyed 75 | . . 75 Melee . | . . . Projectile . | . . . AOE 75 | . . 75 Terrain Rammed . | . . . Walls Destroyed . | . . . Machines Disabled . | . . . Actions | -11 -10 -10 --------- Run | Scr Mat Min Total 622 | 57 389 176 Wait 80 | . 69 11 Move 419 | 47 232 140 Hop . | . . . Pick Up 32 | 5 26 1 Fast Attach 11 | 5 6 . Attach 1 | . 1 . Detach . | . . . Swap 13 | . 6 7 Drop 21 | . 20 1 Fire 44 | . 28 16 Melee . | . . . Ram . | . . . Kick . | . . . Crush 1 | . 1 . Escape Stasis . | . . . Rewire . | . . . Trap . | . . . Miscellaneous . | . . . Route ------- -11/Scrapyard -10/Materials -10/Mines History --------- Turn | Location | Event 7 | -11/Scrapyard | Discovered new exit (range 15) 59 | -11/Scrapyard | Entered Materials 73 | -10/Materials | Identified exit to Mines 308 | -10/Materials | Build established: Mutant 637 | -10/Materials | Entered Mines 640 | -10/Mines | Received a Mining Laser from a helpful Derelict 684 | -10/Mines | Found a damaged Exp. Sensor Array with a note attached 688 | -10/Mines | Found Prototype Device 902 | -10/Mines | Assembled infested the area 907 | -10/Mines | Assisted by a Guerilla fighting off Assembled 947 | -10/Mines | Destroyed 9 combat bots 950 | -10/Mines | Core integrity fell below 50% 954 | -10/Mines | Core integrity fell below 20% 955 | -10/Mines | Destroyed by D-53 Grenadier with Mini Grenade Launcher Last Messages --------------- 00935_ as-79552 destroyed. 00936_ U-05 Engineer lays Concrete. 00937_ Acquired 7 matter. 00937_ U-05 Engineer lays Concrete. 00938_ U-05 Engineer builds a Wall. 00939_ as-55077 destroyed. 00939_ T-07 Excavator destroyed. 00941_ as-57636 destroyed. 00941_ R-06 Scavenger destroyed. 00943_ U-05 Engineer lays Concrete. 00943_ U-05 Engineer suffers critical hit. 00943_ U-05 Engineer knocked back. 00944_ The unstable cave ceiling collapses. 00945_ U-05 Engineer suffers critical hit. 00945_ U-05 Engineer destroyed. 00946_ K-01 Serf collects debris. 00947_ U-05 Engineer destroyed. 00949_ K-01 Serf collects debris. 00951_ Aluminum Leg destroyed. 00953_ K-01 Serf collects debris. Map ----- +----------------------------------------------------+ | ????????????????????????????# #??## | | ????????????????????????????# ##???# | | ????????????????????????????## ##????# | | ?????????????????????????????# ##?????# | | ?????????????????????????????# #??????##% | | ?????????????????????????????# #?????##% | | ?????????????????????????????# #????## | | ?????????????##??????????????# ###### | | ????????????? ##????????????# | | ????????????? ?###????????#! ####### | | ????????????## # ##??????#%!#?????## | | ??????????## a #??????# #??????### | | ??????????# ??????# #????????# | | ??????????# ??????# #????????? | | ??????????? # #??????# #????????? | | ???????????# =# ###????# #????????? | | ???????????# # !% ##???# #????????? | | ???????????? t #???# ##???????? | | ????????????? h ##??# ##??????? | | ??????????????# ##?# ##?????? | | ?????????????## ### ###???? | | ????????????## ### ##???? | | ????????????# ##### ##???? | | ????????????# #### #????? | | ????????????# ### ####### | | ????????????# @ #%= | | ???????????# | d ! !# ##### | | ??????????# ! | k!% # #???? | | ??????????# ! d% =* ###???? | | ?????????# # * # #???? | | ????????# ###### ## k # #???? | | ??????? ?????# #? ## ####???? | | ?????# ? ?????# #?? ## ??????? | | ?????## ? ???? ##??## #### ?????? | | ??????## ? ???? #????# ??? ????? | | ???????# ?? ?? ##????# ???##???? | | ???????#?? ??? ##?????## ???????? | | ?????????? ??? ###?????????# ???????? | | ?????????? ??????#?????????????# #??????? | | ????????????????????????????????###??????? | | ?????????????????????????????????????????? | | ?????????????????????????????????????????? | | ?????????????????????????????????????????? | | ?????????????????????????????????????????? | | ?????????????????????????????????????????? | | ?????????????????????????????????????????? | | ?????????????????????????????????????????? | | ?????????????????????????????????????????? | | ?????????????????????????????????????????? | | ?????????????????????????????????????????? | +----------------------------------------------------+ Best States ------------- Heat Dissipation 25 Energy Generation 10 Energy Capacity 125 Matter Stores 300 Matter Capacity 300 Sight Range 16 Terrain Scan Range 14 Terrain Scan Density 10 Evasion (%) 50 Recoil Reduction 2 Item Schematics ----------------- None Robot Schematics ------------------ None Fabricated ------------ Nothing Alien Tech Used ----------------- None Achievements -------------- None Challenges ------------ None Game ------ Seed UtilityHeatMaul Manual? 0 Play Time 00:17:24 Cumulative 32.1 hours Start 2020.12.23 @ 23:18:49 End 2020.12.23 @ 23:40:46 Sessions 1 Manual Loads 0 Difficulty Rogue Special Mode None Game No. 10 Rogue 10 Adventurer 0 Explorer 0 Win Type - Total 1 Types 1/0/0/0/0/0/0/0/0 Lore% 22 Gallery% 41 Achievement% 30 Wizard Run 0 Options --------- ASCII 0 Keyboard 0 Movement Numpad Keybinds 0 Fullscreen 1 Font 18/TerminusBold Map View 76x50 Tactical HUD 1 Map Filters NONE Filters NONE Steam 1 RUN: de397bab-5b23-4c79-a10a-db42ee841081